bitfinex/quotes_ETHUSD_20220305
["timestamp","ask_amount","ask_price","bid_price","bid_amount"]
[1646502488744,0.04329832,2670.2,2669.7,0.06516604]
[1646502489644,1.24536258,2670.2,2669.7,0.06516604]
[1646502490246,0.00336579,2670.1,2669.7,0.06516604]
[1646502491046,1.24536258,2670.2,2669.7,0.06516604]
[1646502491548,0.00336582,2670.0,2669.7,0.06516604]
[1646502492248,1.24536258,2670.2,2669.7,0.06516604]
[1646502492499,0.00336586,2670.0,2669.7,0.06516604]
[1646502493495,1.24536258,2670.2,2669.7,0.06516604]
[1646502493696,0.00336587,2670.0,2669.7,0.06516604]
[1646502494499,0.97136587,2670.0,2669.7,0.06516604]
[1646502494697,1.53528477,2669.9,2669.7,0.06516604]
[1646502494897,1.53528477,2669.9,2668.9,0.00239891]
[1646502495101,1.08974144,2669.0,2668.9,0.00239891]
[1646502495297,1.08974144,2669.0,2668.6,0.00239891]
[1646502495498,1.08974144,2669.0,2668.5,0.2]
[1646502495699,0.968,2669.5,2668.5,0.2]
[1646502495900,4.7306,2669.8,2668.6,0.00239891]
[1646502496149,0.968,2669.3,2668.6,0.00239891]
[1646502496745,0.968,2669.3,2668.5,0.2]
[1646502496946,1.18472566,2669.1,2668.5,0.2]
[1646502497351,1.18472566,2669.1,2668.8,0.00360481]
[1646502498147,1.18472566,2669.1,2668.5,0.2]
[1646502498550,1.18472566,2669.1,2668.8,0.00360481]
[1646502498950,0.968,2669.3,2668.8,0.00360481]
[1646502499151,0.02530328,2669.0,2668.8,0.00360481]
[1646502499553,0.02530328,2669.0,2668.5,0.2]
[1646502499755,0.02530328,2669.0,2668.9,0.00360473]
[1646502499995,1.13284014,2669.0,2668.9,0.00360473]
[1646502500602,0.02530328,2669.0,2668.5,0.2]
[1646502501601,1.14485115,2668.9,2668.5,0.1]
[1646502502199,1.14485115,2668.9,2668.6,0.00204957]
[1646502503003,1.14485115,2668.9,2668.5,0.1]
[1646502503403,0.02530328,2669.0,2668.6,0.00204957]
[1646502504242,0.02530328,2669.0,2668.5,0.1]
[1646502504443,1.20896883,2669.0,2668.7,0.00204953]
[1646502505547,1.20896883,2669.0,2668.5,0.1]
[1646502505744,1.20896883,2669.0,2668.7,0.00340002]
[1646502506546,0.02530328,2669.0,2668.7,0.00340002]
[1646502506759,0.02530328,2669.0,2668.5,0.1]
[1646502506948,0.02530328,2669.0,2668.7,0.00340002]
[1646502507791,0.02530328,2669.0,2668.5,0.1]
[1646502508291,0.02530328,2669.0,2668.7,0.97117707]
[1646502508994,0.02530328,2669.0,2668.7,0.96777705]
[1646502509194,0.02530328,2669.0,2668.8,3.5]
[1646502509595,0.02530328,2669.0,2668.8,4.5]
[1646502510498,0.02530328,2669.0,2668.8,4.50335753]
[1646502511535,0.02530328,2669.0,2668.8,4.5]
[1646502511736,0.02530328,2669.0,2668.8,4.50335753]
[1646502512739,0.02530328,2669.0,2668.8,4.5]
[1646502512937,0.02530328,2669.0,2668.8,1.0]
[1646502513239,0.02530328,2669.0,2668.7,0.96777705]
[1646502513636,0.02530328,2669.0,2668.8,3.5]
[1646502513840,0.02530328,2669.0,2668.8,4.5]
[1646502515286,0.02530328,2669.0,2668.9,3.5]
[1646502515487,0.02530328,2669.0,2668.9,3.955]
[1646502515688,0.02530328,2669.0,2668.9,4.955]
[1646502516289,0.02277296,2669.0,2668.9,4.955]
[1646502516490,0.00144401,2669.8,2669.2,0.3755]
[1646502516691,3.15971503,2671.0,2669.2,0.3755]
[1646502516692,0.1872,2670.7,2669.4,0.352334]
[1646502516890,4.0943,2671.2,2669.3,8.955]
[1646502516891,0.1872,2671.0,2669.6,0.352334]
[1646502517091,1.53501519,2670.9,2669.7,4.307334]
[1646502517392,4.0943,2671.2,2670.3,1.20498849]
[1646502517393,1.53501519,2670.8,2670.3,1.20498849]
[1646502517592,1.53501519,2670.7,2670.3,1.20498849]
[1646502517791,0.1872,2671.3,2670.4,3.5]
[1646502517991,1.53478448,2671.2,2670.5,0.455]
[1646502518192,1.53478448,2671.1,2670.6,3.5]
[1646502518396,0.1872,2671.7,2670.6,4.5]
[1646502518654,1.53469706,2671.6,2670.6,4.5]
[1646502518847,0.187,2671.5,2671.1,1.10104469]
[1646502519049,1.53469706,2671.4,2670.6,4.5]
[1646502519446,1.53469706,2671.3,2670.7,0.455]
[1646502519648,1.17753478,2671.8,2670.8,3.5]
[1646502519847,1.53452062,2671.7,2670.8,4.955]
[1646502520146,5.3159,2672.1,2670.8,4.955]
[1646502520147,1.53452062,2671.6,2670.8,5.307334]
[1646502520346,3.1011,2672.1,2670.8,5.307334]
[1646502520347,1.53452062,2671.5,2670.8,5.307334]
[1646502520546,0.6865057,2672.1,2670.8,5.307334]
[1646502520749,0.6865057,2672.1,2671.4,0.99632874]
[1646502520750,1.07618345,2672.1,2671.4,0.99632874]
[1646502520952,1.53453462,2672.0,2670.8,5.307334]
[1646502521348,0.00358455,2671.6,2670.8,5.307334]
[1646502522148,0.00358455,2671.6,2671.1,0.96379753]
[1646502522384,1.53453462,2671.9,2671.1,0.96379753]
[1646502522590,0.00358475,2671.3,2671.1,0.96379753]
[1646502522792,0.00358475,2671.3,2670.8,0.807334]
[1646502522990,0.00358475,2671.3,2670.8,3.79351614]
[1646502523390,0.00358475,2671.3,2670.8,4.79351614]
[1646502523592,1.53453462,2671.6,2670.8,1.807334]
[1646502523793,1.53453462,2671.6,2671.0,1.21397069]
[1646502523794,0.00358487,2671.2,2671.0,1.21397069]
[1646502524694,1.11927053,2672.1,2671.0,1.21397069]
[1646502524895,1.53456235,2672.0,2671.0,1.21397069]
[1646502525094,0.00347729,2671.2,2671.0,1.21397069]
[1646502525294,0.00347729,2671.2,2670.8,0.807334]
[1646502525995,1.01628421,2671.6,2670.8,0.807334]
[1646502526241,0.00347736,2671.1,2670.8,0.807334]
[1646502526844,0.00347736,2671.1,2670.8,0.455]
[1646502527043,0.23008708,2672.1,2670.5,1.1716]
[1646502527245,1.11564675,2671.4,2670.7,1.08537629]
[1646502527443,0.0034774,2671.1,2670.7,1.08537629]
[1646502528249,3.5,2672.0,2670.7,1.08537629]
[1646502528442,1.53467128,2671.9,2670.7,1.08537629]
[1646502528643,0.003336,2671.0,2670.7,1.08537629]
[1646502529444,0.03003916,2671.2,2670.7,1.46087629]
[1646502529907,0.03003916,2671.2,2670.8,0.93621]
[1646502530107,0.03003916,2671.2,2670.8,1.39121]
[1646502530307,0.03003916,2671.2,2670.9,0.3755]
[1646502530514,3.916e-05,2671.2,2671.0,0.8305]
[1646502530713,1.53432351,2672.3,2671.1,0.8305]
[1646502530912,4.0337,2672.6,2671.5,0.93591]
[1646502531112,1.53424583,2672.5,2671.6,0.455]
[1646502531516,1.53424583,2672.7,2671.6,0.455]
[1646502531717,2.58229727,2672.6,2671.9,1.22934095]
[1646502531915,1.53424583,2672.5,2671.9,1.22934095]
[1646502532718,1.04805144,2672.6,2671.9,1.22934095]
[1646502533119,2.23518618,2672.8,2671.9,1.22934095]
[1646502533322,0.00345349,2672.4,2671.9,1.22934095]
[1646502534370,0.18796,2673.2,2672.7,1.02749714]
[1646502534570,0.60874998,2672.4,2672.2,0.96635105]
[1646502534770,0.60874998,2672.4,2672.3,2.99310419]
[1646502534970,0.60874998,2672.4,2672.2,0.96635105]
[1646502537270,0.60874998,2672.4,2672.2,3.96137496]
[1646502537497,0.60874998,2672.4,2672.2,0.96635105]
[1646502537699,0.60874998,2672.4,2672.2,1.96635105]
[1646502537897,0.60874998,2672.4,2672.2,0.96635105]
[1646502538097,0.61208139,2672.4,2672.0,0.09841282]
[1646502539106,0.60874998,2672.4,2672.0,0.09841282]
[1646502539306,0.60874998,2672.4,2672.3,0.03394345]
[1646502543948,0.60874998,2672.4,2672.0,0.13235627]
[1646502544351,4.10874998,2672.4,2672.0,0.03394345]
[1646502544653,0.60874998,2672.4,2672.0,0.03394345]
[1646502545491,0.00333571,2672.3,2672.0,0.03394345]
[1646502546294,0.60874998,2672.4,2672.0,0.03394345]
[1646502546793,0.00333927,2672.3,2672.0,0.03394345]
[1646502547492,0.60874998,2672.4,2672.0,0.03394345]
[1646502547893,0.00333927,2672.3,2672.0,0.03394345]
[1646502548096,0.00333927,2672.3,2672.0,0.98938137]
[1646502548748,0.60874998,2672.4,2672.2,0.02299868]
[1646502548947,0.00333927,2672.3,2672.2,0.02299868]
[1646502549348,0.01335509,2672.7,2672.2,0.02299868]
[1646502549950,0.3755,2673.4,2672.2,0.02299868]
[1646502549951,0.00096,2673.3,2672.2,0.02299868]
[1646502550347,0.98698111,2673.3,2672.6,0.99630726]
[1646502550947,0.98698111,2673.3,2672.2,0.02299868]
[1646502551151,1.53392471,2673.2,2672.2,0.02299868]
[1646502551349,0.00096,2673.1,2672.2,0.02299868]
[1646502551648,0.98602111,2673.3,2672.2,0.02299868]
[1646502551649,0.00096,2673.2,2672.2,0.02299868]
[1646502552048,0.00096,2673.2,2672.2,1.04394585]
[1646502552896,1.19716445,2672.8,2672.2,1.04394585]
[1646502553298,0.00096,2673.3,2672.2,1.04394585]
[1646502553700,1.53486257,2673.3,2672.2,1.04394585]
[1646502553899,0.00358016,2672.6,2672.3,0.93569]
[1646502554799,1.10891039,2673.0,2672.3,0.93569]
[1646502555003,0.0035802,2672.6,2672.4,2.99675207]
[1646502555400,0.0035802,2672.6,2672.4,3.99675207]
[1646502555597,0.0035802,2672.6,2672.2,2.02094717]
[1646502555798,0.0035802,2672.6,2672.2,1.02094717]
[1646502556000,0.00096,2673.3,2672.2,1.02094717]
[1646502556249,0.0014364,2672.6,2672.2,1.02094717]
[1646502556847,0.0014364,2672.6,2672.3,0.93569]
[1646502557046,0.00096,2673.4,2672.3,0.93569]
[1646502557245,1.53477883,2673.6,2672.3,0.93569]
[1646502557448,1.53477883,2673.6,2672.4,0.455]
[1646502557449,0.0014364,2672.5,2672.4,0.455]
[1646502557650,0.0014364,2672.5,2672.4,3.45175131]
[1646502558049,0.0014364,2672.5,2672.4,1.455]
[1646502558249,0.00574475,2672.9,2672.4,12.2705]
[1646502558449,0.00096,2673.6,2672.7,0.93554]
[1646502558648,0.01433068,2673.0,2672.7,1.39054]
[1646502559553,0.00096,2673.7,2672.8,0.97919348]
[1646502559904,1.18026983,2673.3,2672.4,1.47795925]
[1646502560093,1.18026983,2673.3,2672.4,0.47795925]
[1646502560695,1.18026983,2673.3,2672.5,1.00296146]
[1646502561596,1.53368007,2673.2,2672.5,1.00296146]
[1646502561796,1.53464007,2673.2,2672.5,1.00296146]
[1646502561998,1.53464007,2673.2,2672.4,0.02295925]
[1646502562197,0.00143339,2673.0,2672.4,0.02295925]
[1646502562999,1.19879073,2672.7,2672.4,0.02295925]
[1646502563498,1.19879073,2672.7,2672.3,0.02748015]
[1646502564547,0.00127512,2672.6,2672.3,0.02748015]
[1646502565549,1.19879073,2672.7,2672.3,0.02748015]
[1646502565849,0.00127512,2672.6,2672.3,0.02748015]
[1646502566653,1.53385646,2672.9,2672.3,0.02748015]
[1646502566852,1.53385646,2672.8,2672.3,0.02748015]
[1646502567254,0.00342599,2672.6,2672.3,0.02748015]
[1646502567694,0.00342599,2672.6,2672.3,0.96318015]
[1646502567900,0.00096,2673.2,2672.3,0.96318015]
[1646502568095,2.9145,2673.4,2672.3,0.96318015]
[1646502568096,1.53473324,2673.3,2672.3,0.96318015]
[1646502568296,0.00343662,2672.6,2672.3,0.96318015]
[1646502568700,0.00343662,2672.6,2672.5,0.02293954]
[1646502569099,1.22935804,2672.9,2672.5,0.02293954]
[1646502569503,0.00343654,2672.7,2672.5,0.02293954]
[1646502570300,1.22935804,2672.9,2672.5,0.02293954]
[1646502570702,0.0034365,2672.7,2672.5,0.02293954]
[1646502571547,1.22935804,2672.9,2672.5,0.02293954]
[1646502571745,0.00326063,2672.7,2672.5,0.02293954]
[1646502572849,1.22935804,2672.9,2672.5,0.02293954]
[1646502573053,0.00326063,2672.7,2672.5,0.02293954]
[1646502573549,0.00326063,2672.7,2672.4,0.0275038]
[1646502573952,1.53383312,2672.8,2672.4,0.0275038]
[1646502574352,0.00326067,2672.7,2672.4,0.0275038]
[1646502575195,1.53383312,2672.8,2672.4,0.0275038]
[1646502575400,0.00313296,2672.7,2672.4,0.0275038]
[1646502576399,1.53383312,2672.8,2672.4,0.0275038]
[1646502576600,0.00313296,2672.7,2672.4,0.0275038]
[1646502577600,1.53383312,2672.8,2672.4,0.0275038]
[1646502577800,0.00313296,2672.7,2672.4,0.0275038]
[1646502578851,1.53383312,2672.8,2672.5,0.02280659]
[1646502579049,0.00314293,2672.7,2672.5,0.02280659]
[1646502579650,0.00225105,2672.7,2672.5,0.02280659]
[1646502580052,1.53383312,2672.8,2672.5,0.02280659]
[1646502582598,1.53741757,2672.8,2672.5,0.02280659]
[1646502583397,3.5,2672.7,2672.5,0.02280659]
[1646502583593,0.04289645,2672.4,2671.7,0.02291983]
[1646502583798,2.57497357,2672.3,2671.7,0.02291983]
[1646502583998,1.53383312,2672.2,2671.7,0.02291983]
[1646502584198,1.53383312,2672.2,2671.4,0.02748015]
[1646502584199,5.03383312,2672.2,2671.4,0.02748015]
[1646502584400,1.53383312,2672.1,2671.4,0.02748015]
[1646502584999,3.5,2672.0,2671.4,0.02748015]
[1646502585200,3.5,2672.2,2671.4,0.02748015]
[1646502585600,5.6145,2672.2,2671.4,0.02748015]
[1646502585800,6.3010057,2672.2,2671.4,0.02748015]
[1646502586647,5.3330057,2672.2,2671.4,0.02748015]
[1646502587047,4.6465,2672.2,2671.4,0.02748015]
[1646502587247,5.6145,2672.2,2671.4,0.02748015]
[1646502587848,0.968,2672.1,2671.4,0.02748015]
[1646502588048,3.5,2672.0,2671.4,0.02748015]
[1646502588449,5.6876,2672.0,2671.4,0.02748015]
[1646502588651,0.187,2671.9,2671.4,0.02748015]
[1646502588852,1.16591098,2671.8,2671.4,0.02748015]
[1646502589051,3.687,2671.7,2671.4,0.02748015]
[1646502589251,3.687,2671.7,2670.3,2.40267542]
[1646502589453,0.88957775,2670.8,2670.3,2.40267542]
[1646502589652,0.88957775,2670.8,2670.3,1.22287542]
[1646502590097,0.88957775,2670.8,2669.9,8.37]
[1646502590296,0.88957775,2670.8,2669.9,1.0]
[1646502590697,0.88957775,2670.8,2669.8,5.72835419]
[1646502590900,0.88957775,2670.8,2669.8,5.7110204]
[1646502591100,0.88957775,2670.8,2669.8,5.72771354]
[1646502591304,0.88957775,2670.8,2670.1,1.20425648]
[1646502592502,0.88957775,2670.8,2670.2,0.93645]
[1646502593647,3.5926,2671.3,2670.2,0.93645]
[1646502593857,0.03169994,2670.8,2670.2,1.31195]
[1646502594060,0.03169994,2670.8,2670.4,0.3755]
[1646502594253,0.03169994,2670.8,2670.4,0.8305]
[1646502594855,0.03169994,2670.8,2670.4,15.24938974]
[1646502595059,0.02852995,2670.8,2670.7,11.8155]
[1646502595255,3.5438,2672.1,2670.7,12.2705]
[1646502595457,3.5438,2672.1,2670.8,3.35368747]
[1646502595756,3.43955353,2672.1,2671.5,1.06348211]
[1646502595954,1.09655353,2672.1,2671.5,1.06348211]
[1646502596556,0.0142917,2672.2,2671.5,1.06348211]
[1646502596756,2.04441887,2672.3,2671.5,1.06348211]
[1646502596956,0.04289645,2672.4,2671.5,1.06348211]
[1646502597156,0.01429316,2672.3,2671.5,1.06348211]
[1646502597596,0.90161007,2672.1,2671.5,1.06348211]
[1646502598903,0.00573719,2672.3,2671.5,1.06348211]
[1646502599100,0.04289645,2672.4,2671.5,1.06348211]
[1646502599301,0.04289645,2672.4,2671.7,0.04335068]
[1646502599503,0.01383285,2672.3,2671.7,0.04335068]
[1646502599902,0.01383285,2672.3,2671.7,0.97926068]
[1646502600105,0.01383285,2672.3,2671.7,0.04335068]
[1646502600302,1.26285627,2672.4,2671.7,0.04335068]
[1646502603152,1.08337646,2671.9,2671.7,0.04335068]
[1646502603855,3.5,2671.8,2671.7,0.04335068]
[1646502604254,3.5,2671.8,2671.1,0.06490769]
[1646502604255,0.97404883,2671.2,2671.1,0.06490769]
[1646502604459,0.12481879,2671.6,2671.1,0.06490769]
[1646502605604,1.53452787,2671.5,2671.1,0.06490769]
[1646502606004,0.12481879,2671.6,2671.1,0.06490769]
[1646502606207,0.87814982,2671.5,2671.1,0.06490769]
[1646502606805,3.5,2671.4,2671.1,0.06490769]
[1646502607005,0.87814982,2671.5,2671.1,0.06490769]
[1646502609255,0.87814982,2671.5,2671.2,0.04348755]
[1646502609256,3.5,2671.4,2671.2,0.04348755]
[1646502609457,3.5,2671.4,2670.4,0.04350848]
[1646502609653,0.968,2671.2,2670.4,0.04350848]
[1646502609854,3.5,2671.1,2670.4,0.04350848]
[1646502610054,0.86567055,2671.0,2670.4,0.04350848]
[1646502610257,1.1123127,2670.5,2670.4,0.04350848]
[1646502612155,1.78128263,2671.1,2670.4,0.04350848]
[1646502612408,1.78128263,2671.1,2670.4,10.04350848]
[1646502612598,0.54968263,2671.1,2670.4,10.04350848]
[1646502613299,1.00679536,2670.8,2670.4,10.04350848]
[1646502613903,4.468,2671.5,2670.4,10.04350848]
[1646502614105,0.02672291,2670.5,2670.4,10.0]
[1646502615103,0.02672291,2670.5,2670.4,9.99095914]
[1646502615303,0.03093276,2670.5,2670.4,9.99095914]
[1646502617149,0.03093276,2670.5,2670.4,10.99095914]
[1646502617952,0.03093276,2670.5,2670.4,9.99095914]
[1646502632148,0.03093276,2670.5,2670.4,11.36645914]
[1646502633247,0.03093276,2670.5,2670.4,11.36234295]
[1646502635695,0.03093276,2670.5,2670.4,10.98684295]
[1646502636696,0.03093276,2670.5,2670.4,11.36234295]
[1646502638099,0.03093276,2670.5,2670.4,11.31234295]
[1646502638299,0.03093276,2670.5,2670.4,10.93684295]
[1646502643802,0.03093276,2670.5,2670.4,11.31234295]
[1646502645101,0.03093276,2670.5,2670.4,2.52491356]
[1646502645303,0.03093276,2670.5,2669.8,1.83101127]
[1646502645304,3.5,2670.4,2669.8,1.83101127]
[1646502645502,3.5,2670.4,2669.8,0.015504]
[1646502645503,3.5,2670.3,2669.8,0.015504]
[1646502645711,1.54740298,2670.2,2669.8,0.015504]
[1646502645902,5.03485962,2670.1,2669.8,0.015504]
[1646502646150,1.20384512,2669.9,2669.8,0.015504]
[1646502646354,6.23870474,2669.9,2669.8,0.015504]
[1646502646551,2.73870474,2669.9,2669.8,0.015504]
[1646502646950,2.73870474,2669.9,2669.7,3.46316996]
[1646502647151,0.8797,2670.0,2669.7,3.46316996]
[1646502647350,1.53521669,2669.9,2669.7,3.46316996]
[1646502647553,0.8797,2670.0,2669.7,3.46316996]
[1646502647750,0.8797,2670.0,2669.2,0.1872]
[1646502647954,0.8797,2670.0,2668.9,0.1872]
[1646502648152,0.8797,2670.0,2669.0,0.00239891]
[1646502648352,1.17413219,2669.9,2669.1,1.41456536]
[1646502648553,0.8797,2670.0,2669.2,0.00239891]
[1646502648758,0.8797,2670.0,2669.1,1.41456536]
[1646502648956,0.8797,2670.0,2669.2,0.00239891]
[1646502650006,1.99607014,2670.0,2669.2,0.00239891]
[1646502651311,0.8797,2670.0,2669.3,0.1872]
[1646502651518,0.8797,2670.0,2669.5,0.00345062]
[1646502651714,0.88390985,2670.0,2669.5,0.00345062]
[1646502651915,0.88390985,2670.0,2669.6,0.1872]
[1646502652712,0.88390985,2670.0,2669.7,0.00337728]
[1646502653758,0.90692692,2670.0,2669.7,0.00675452]
[1646502653954,0.90692692,2670.0,2669.7,0.00337724]
[1646502654658,0.90692692,2670.0,2669.5,0.1872]
[1646502654856,0.90692692,2670.0,2669.4,0.00239891]
[1646502655057,0.90692692,2670.0,2669.2,0.37789891]
[1646502655659,0.90692692,2670.0,2669.2,0.00239891]
[1646502655858,2.01497505,2670.0,2669.2,1.12566565]
[1646502656257,2.01497505,2670.0,2669.5,0.00343002]
[1646502656258,0.90692692,2670.0,2669.5,0.00343002]
[1646502657158,0.02722692,2670.0,2669.3,0.00239891]
[1646502657408,0.02722692,2670.0,2669.6,0.0034299]
[1646502658401,0.02722692,2670.0,2669.3,0.00239891]
[1646502659702,0.02722692,2670.0,2669.2,0.62566565]
[1646502660102,0.02722692,2670.0,2669.2,0.81286565]
[1646502660504,0.02722692,2670.0,2669.8,1.23342891]
[1646502660904,0.02722692,2670.0,2669.2,0.1872]
[1646502661149,0.02722692,2670.0,2669.5,0.00353197]
[1646502661950,0.02722692,2670.0,2669.1,1.2175]
[1646502662149,0.02722692,2670.0,2669.6,0.00353185]
[1646502662150,0.9034172,2670.0,2669.6,0.00353185]
[1646502663256,0.9034172,2670.0,2669.3,1.03905744]
[1646502663454,0.9034172,2670.0,2669.7,0.00330126]
[1646502664456,0.02722692,2670.0,2669.4,0.00239359]
[1646502664657,0.02722692,2670.0,2669.7,0.00330122]
[1646502665498,0.02722692,2670.0,2669.4,0.00239359]
[1646502665698,0.02722692,2670.0,2669.3,1.03905744]
[1646502665905,0.02722692,2670.0,2669.7,0.00320218]
[1646502666698,0.02722692,2670.0,2669.4,0.00239359]
[1646502666900,0.02722692,2670.0,2669.3,1.03905744]
[1646502667100,0.02722692,2670.0,2669.7,0.00320218]
[1646502667900,0.02722692,2670.0,2669.4,0.00239359]
[1646502668101,0.02722692,2670.0,2669.3,1.03905744]
[1646502669451,0.02722692,2670.0,2669.5,0.00308394]
[1646502670253,0.02722692,2670.0,2669.3,1.03905744]
[1646502670652,0.02722692,2670.0,2669.6,0.00308387]
[1646502671654,0.02722692,2670.0,2669.4,0.00239359]
[1646502671853,0.02722692,2670.0,2669.7,0.00308721]
[1646502672700,0.02722692,2670.0,2669.4,0.00239359]
[1646502672902,0.02722692,2670.0,2669.3,1.03905744]
[1646502673099,0.02722692,2670.0,2669.7,0.0030929]
[1646502673904,0.02722692,2670.0,2669.4,0.00239359]
[1646502674103,0.02722692,2670.0,2669.3,1.03905744]
[1646502674303,0.02722692,2670.0,2669.7,0.0030929]
[1646502675108,1.10549389,2669.9,2669.4,0.00239359]
[1646502675406,0.00420985,2669.9,2669.7,0.00309248]
[1646502676252,0.00420985,2669.9,2669.4,0.00239359]
[1646502676450,0.00420985,2669.9,2669.3,1.03905744]
[1646502676651,0.00420985,2669.9,2669.7,0.00309201]
[1646502677651,0.00420985,2669.9,2669.4,0.00239359]
[1646502677853,0.00420985,2669.9,2669.7,0.00309201]
[1646502678760,0.00420985,2669.9,2669.4,0.00239359]
[1646502679058,0.00420985,2669.9,2669.3,1.03905744]
[1646502679059,0.00420985,2669.9,2669.7,0.00309206]
[1646502679909,0.00420985,2669.9,2669.4,0.00239359]
[1646502680102,0.00420985,2669.9,2669.2,0.00239359]
[1646502680306,0.00420985,2669.9,2669.7,0.00309211]
[1646502681309,1.05156966,2669.8,2669.7,0.00309211]
[1646502681506,4.55577951,2669.8,2669.7,0.00309211]
[1646502681709,6.09127774,2669.8,2669.7,0.00309211]
[1646502682309,0.00602253,2669.6,2669.2,0.00239359]
[1646502682508,3.51023238,2669.6,2669.1,1.2175]
[1646502682710,3.51023238,2669.6,2669.0,1.28378613]
[1646502683009,0.01023238,2669.6,2669.2,0.01237043]
[1646502683648,0.01023238,2669.6,2669.0,1.28378613]
[1646502685656,0.01023238,2669.6,2669.0,1.09658613]
[1646502687499,0.01023238,2669.6,2669.2,0.00353066]
[1646502688300,0.01023238,2669.6,2669.0,1.09419254]
[1646502688703,1.53561067,2669.5,2668.8,0.00239359]
[1646502688904,1.53982052,2669.5,2668.8,0.00239359]
[1646502689107,1.53561067,2669.4,2668.7,1.2281]
[1646502689606,1.53982052,2669.4,2668.7,1.2281]
[1646502689804,1.53561067,2669.3,2668.7,1.2281]
[1646502690005,1.11678051,2669.2,2668.7,1.2281]
[1646502690305,3.50420985,2669.4,2668.6,0.00239359]
[1646502690507,1.53571336,2669.3,2668.6,0.00239359]
[1646502690905,1.53992321,2669.3,2668.6,0.00239359]
[1646502691150,0.00420985,2669.3,2668.6,0.00239359]
[1646502691561,1.53575654,2669.2,2668.6,0.00239359]
[1646502691763,1.53575654,2669.2,2668.5,0.1]
[1646502692161,1.53575654,2669.2,2668.8,0.00352796]
[1646502692365,2.76018237,2669.2,2668.8,0.00352796]
[1646502692660,1.22442583,2669.2,2668.8,0.00352796]
[1646502692860,0.00420985,2669.3,2668.8,0.00352796]
[1646502693261,0.00420985,2669.3,2668.6,0.00239359]
[1646502694062,0.00420985,2669.3,2668.6,1.21068626]
[1646502694267,0.02548143,2669.3,2668.6,0.00239359]
[1646502695304,0.02548143,2669.3,2668.6,1.15724552]
[1646502697003,0.02548143,2669.3,2668.8,0.00352491]
[1646502698003,0.02548143,2669.3,2668.7,0.00239359]
[1646502698202,0.02548143,2669.3,2668.9,0.00341214]
[1646502698402,0.02548143,2669.3,2668.9,0.00213274]
[1646502699157,0.02548143,2669.3,2668.7,0.00239359]
[1646502699361,0.02548143,2669.3,2668.6,1.15485193]
[1646502701866,0.02548143,2669.3,2668.8,0.00352247]
[1646502702704,0.02548143,2669.3,2669.2,0.91899758]
[1646502704713,0.02548143,2669.3,2669.1,0.00333268]
[1646502705112,0.02548143,2669.3,2668.8,0.00239359]
[1646502705316,0.02548143,2669.3,2668.7,3.4559]
[1646502705513,0.02548143,2669.3,2668.7,3.46634371]
[1646502705712,0.02548143,2669.3,2668.9,0.88086066]
[1646502707756,0.02548143,2669.3,2669.0,0.00185275]
[1646502708858,0.02548143,2669.3,2668.9,0.88086066]
[1646502709062,0.02548143,2669.3,2669.0,0.00185275]
[1646502709910,0.02548143,2669.3,2668.9,1.25636066]
[1646502710302,0.02548143,2669.3,2669.0,0.00328312]
[1646502711304,0.02548143,2669.3,2668.9,1.25636066]
[1646502711505,0.02548143,2669.3,2669.0,0.00333238]
[1646502712311,3.43150396,2670.0,2668.9,0.88086066]
[1646502712508,0.00420985,2669.3,2669.0,0.00239359]
[1646502712808,0.00420985,2669.3,2669.0,0.00333238]
[1646502713653,0.00420985,2669.3,2668.9,0.88086066]
[1646502713857,0.00420985,2669.3,2669.0,0.00333238]
[1646502714355,0.02546357,2669.2,2669.0,0.00333238]
[1646502714556,0.02967342,2669.2,2669.0,0.00333238]
[1646502714756,0.02967342,2669.2,2668.9,0.88086066]
[1646502715156,0.02967342,2669.2,2669.0,0.00328071]
[1646502715957,0.02967342,2669.2,2668.7,4.45540442]
[1646502716158,0.02967342,2669.2,2668.7,4.45301083]
[1646502716356,0.02967342,2669.2,2669.0,0.00328071]
[1646502717159,0.02967342,2669.2,2668.8,1.17737352]
[1646502717415,0.02967342,2669.2,2669.0,0.00328071]
[1646502718406,0.02967342,2669.2,2668.8,1.17737352]
[1646502718607,0.02967342,2669.2,2669.0,0.0032842]
[1646502719511,0.02967342,2669.2,2669.1,0.04414968]
[1646502723958,1.2436,2670.0,2669.1,4.0]
[1646502724159,1.5313,2670.1,2669.1,0.455]
[1646502724458,1.53540317,2670.0,2669.1,1.455]
[1646502724657,1.53540317,2670.0,2669.2,0.3755]
[1646502724913,1.1357,2670.3,2669.7,1.06415206]
[1646502725104,1.53531934,2670.2,2669.3,0.455]
[1646502725407,1.53531934,2670.1,2669.3,0.455]
[1646502725603,1.53531934,2670.0,2669.3,0.455]
[1646502725804,3.34296957,2670.5,2669.3,0.455]
[1646502726004,1.53531565,2670.4,2669.3,4.32539425]
[1646502726206,1.53531565,2670.4,2669.8,1.2052232]
[1646502726405,1.53531565,2670.4,2669.9,3.49646393]
[1646502726605,0.0032861,2670.5,2670.0,0.3755]
[1646502726804,1.53506995,2671.0,2670.0,0.3755]
[1646502727005,1.53506995,2670.9,2670.1,3.5]
[1646502727208,0.00328632,2670.5,2670.0,0.3755]
[1646502727510,0.00328632,2670.5,2670.4,1.12566348]
[1646502727709,0.00328632,2670.5,2670.4,1.06601318]
[1646502728109,1.53492151,2670.8,2670.4,1.06601318]
[1646502728311,0.00328633,2670.6,2670.3,3.5]
[1646502728509,0.00328633,2670.6,2670.2,3.8755]
[1646502728754,0.00328633,2670.6,2670.2,4.8755]
[1646502729154,0.00328633,2670.6,2670.2,1.3755]
[1646502729354,1.53495986,2671.2,2670.4,1.04162138]
[1646502729556,0.00328246,2670.5,2670.4,1.04162138]
[1646502729754,0.00328246,2670.5,2670.2,0.3755]
[1646502730356,1.53495986,2671.2,2670.2,0.3755]
[1646502730757,0.0032825,2670.5,2670.3,1.14599605]
[1646502731556,1.53495986,2671.2,2670.3,1.14599605]
[1646502731756,1.53495986,2671.2,2670.4,3.5]
[1646502731959,0.00328246,2670.5,2670.4,3.5]
[1646502732807,1.53495986,2671.2,2670.4,3.5]
[1646502733110,0.00328268,2670.6,2670.4,3.5]
[1646502733512,0.00328268,2670.6,2670.3,1.14599605]
[1646502733711,0.00328268,2670.6,2670.1,0.455]
[1646502733911,0.00328268,2670.6,2670.4,0.05019302]
[1646502734112,1.53495986,2671.1,2670.4,0.05019302]
[1646502734313,0.00328268,2670.6,2670.4,0.05019302]
[1646502735314,3.5,2671.1,2670.4,0.05019302]
[1646502735514,0.00328265,2670.6,2670.4,0.05019302]
[1646502736356,0.96659587,2670.9,2670.4,0.05019302]
[1646502736755,0.00328263,2670.6,2670.4,0.05019302]
[1646502737558,0.96659587,2670.9,2670.4,0.05019302]
[1646502737957,0.00328263,2670.6,2670.4,0.05019302]
[1646502738763,0.96659587,2670.9,2670.4,0.05019302]